[Event "Titled Tuesday Blitz December 20 Early 2022"]
[White "Hsu, Li Yang"]
[Black "Mosti, Alain"]
[WhiteFideId "5800080"]
[BlackFideId "20606451"]
[WhiteElo "2427"]
[BlackElo "1655"]
[Result "1-0"]
[Round "04"]
[TimeControl "180+2"]
[Date "2022.12.20"]
[WhiteClock "0:00:43"]
[BlackClock "0:00:31"]

1. Nf3 {[%clk 0:03:00]}  e6 {[%clk 0:03:00]} 2. g3 {[%clk 0:03:01]}  b6 {[%clk 0:03:01]} 3. Bg2 {[%clk 0:03:02]}  Bb7 {[%clk 0:03:02]} 4. O-O {[%clk 0:03:02]}  Nf6 {[%clk 0:03:02]} 5. d4 {[%clk 0:03:00]}  g6 {[%clk 0:03:02]} 6. c4 {[%clk 0:03:00]}  Bg7 {[%clk 0:03:03]} 7. Nc3 {[%clk 0:03:01]}  Ne4 {[%clk 0:03:03]} 8. Bd2 {[%clk 0:02:58]}  O-O {[%clk 0:03:03]} 9. Qc2 {[%clk 0:02:54]}  Nxd2 {[%clk 0:03:02]} 10. Qxd2 {[%clk 0:02:55]}  d6 {[%clk 0:03:03]} 11. Rfd1 {[%clk 0:02:51]}  a5 {[%clk 0:03:03]} 12. Rac1 {[%clk 0:02:51]}  Nd7 {[%clk 0:03:03]} 13. h4 {[%clk 0:02:50]}  h6 {[%clk 0:03:02]} 14. e3 {[%clk 0:02:49]}  Qe7 {[%clk 0:03:03]} 15. Ne1 {[%clk 0:02:49]}  Bxg2 {[%clk 0:03:02]} 16. Kxg2 {[%clk 0:02:50]}  f5 {[%clk 0:03:02]} 17. Nf3 {[%clk 0:02:49]}  Nf6 {[%clk 0:02:58]} 18. Qc2 {[%clk 0:02:45]}  Ng4 {[%clk 0:02:54]} 19. Ne2 {[%clk 0:02:29]}  e5 {[%clk 0:02:51]} 20. c5 {[%clk 0:02:11]}  g5 {[%clk 0:01:29]} 21. hxg5 {[%clk 0:02:08]}  hxg5 {[%clk 0:01:29]} 22. cxd6 {[%clk 0:02:07]}  cxd6 {[%clk 0:01:28]} 23. Qc7 {[%clk 0:02:04]}  Qf6 {[%clk 0:01:16]} 24. Qc4+ {[%clk 0:01:46]}  Rf7 {[%clk 0:01:03]} 25. Qd5 {[%clk 0:01:45]}  Rf8 {[%clk 0:00:57]} 26. dxe5 {[%clk 0:01:44]}  Nxe5 {[%clk 0:00:52]} 27. Nxe5 {[%clk 0:01:35]}  Qxe5 {[%clk 0:00:53]} 28. Qxe5 {[%clk 0:01:33]}  Bxe5 {[%clk 0:00:52]} 29. Rc6 {[%clk 0:01:25]}  f4 {[%clk 0:00:53]} 30. exf4 {[%clk 0:01:19]}  gxf4 {[%clk 0:00:54]} 31. Nxf4 {[%clk 0:01:17]}  Bxf4 {[%clk 0:00:55]} 32. gxf4 {[%clk 0:01:18]}  Rxf4 {[%clk 0:00:55]} 33. Rd2 {[%clk 0:01:18]}  Rg4+ {[%clk 0:00:47]} 34. Kf1 {[%clk 0:01:16]}  Rb4 {[%clk 0:00:48]} 35. Rcxd6 {[%clk 0:01:14]}  Rff4 {[%clk 0:00:41]} 36. Rd7 {[%clk 0:01:11]}  Rf7 {[%clk 0:00:39]} 37. Rxf7 {[%clk 0:01:06]}  Kxf7 {[%clk 0:00:40]} 38. Ke2 {[%clk 0:01:07]}  Kf6 {[%clk 0:00:40]} 39. Rc2 {[%clk 0:01:03]}  Ke5 {[%clk 0:00:40]} 40. Ke3 {[%clk 0:01:03]}  Re4+ {[%clk 0:00:40]} 41. Kf3 {[%clk 0:01:01]}  Rf4+ {[%clk 0:00:40]} 42. Kg3 {[%clk 0:01:01]}  Rf6 {[%clk 0:00:41]} 43. Rc4 {[%clk 0:00:57]}  Kd5 {[%clk 0:00:37]} 44. Rh4 {[%clk 0:00:54]}  Rc6 {[%clk 0:00:37]} 45. f4 {[%clk 0:00:49]}  Ke4 {[%clk 0:00:38]} 46. Rh5 {[%clk 0:00:44]}  Rg6+ {[%clk 0:00:33]} 47. Rg5 {[%clk 0:00:44]}  Rxg5+ {[%clk 0:00:33]} 48. fxg5 {[%clk 0:00:44]}  Kf5 {[%clk 0:00:34]} 49. Kh4 {[%clk 0:00:44]}  Kg6 {[%clk 0:00:33]} 50. a4 {[%clk 0:00:42]}  Kg7 {[%clk 0:00:31]} 51. Kh5 {[%clk 0:00:42]}  Kh7 {[%clk 0:00:31]} 52. g6+ {[%clk 0:00:43]}  Kg7 {[%clk 0:00:31]} 53. Kg5 {[%clk 0:00:43]} 1-0


[Site "https://www.chess.com"]

[Event "Titled Tuesday Blitz December 20 Early 2022"]
[White "Huda, Maryana"]
[Black "Aslanov_Umid"]
[WhiteFideId "14116553"]
[WhiteElo "2160"]
[BlackElo "2425"]
[Result "0-1"]
[Round "04"]
[TimeControl "180+2"]
[Date "2022.12.20"]
[WhiteClock "0:00:15"]
[BlackClock "0:00:20"]

1. d4 {[%clk 0:02:55]}  d5 {[%clk 0:02:58]} 2. c4 {[%clk 0:02:54]}  e6 {[%clk 0:02:59]} 3. Nf3 {[%clk 0:02:53]}  Nf6 {[%clk 0:02:58]} 4. g3 {[%clk 0:02:53]}  Bb4+ {[%clk 0:02:59]} 5. Nbd2 {[%clk 0:02:52]}  O-O {[%clk 0:02:58]} 6. Bg2 {[%clk 0:02:53]}  Re8 {[%clk 0:02:58]} 7. O-O {[%clk 0:02:52]}  b6 {[%clk 0:02:52]} 8. Qa4 {[%clk 0:02:35]}  Bf8 {[%clk 0:02:46]} 9. Ne5 {[%clk 0:02:32]}  Bb7 {[%clk 0:02:45]} 10. Rd1 {[%clk 0:02:09]}  c6 {[%clk 0:02:33]} 11. e4 {[%clk 0:01:58]}  Nfd7 {[%clk 0:02:28]} 12. exd5 {[%clk 0:01:48]}  exd5 {[%clk 0:02:24]} 13. cxd5 {[%clk 0:01:37]}  cxd5 {[%clk 0:02:16]} 14. Ndf3 {[%clk 0:01:32]}  f6 {[%clk 0:02:14]} 15. Nd3 {[%clk 0:01:24]}  Nc6 {[%clk 0:01:42]} 16. Bf4 {[%clk 0:01:21]}  Na5 {[%clk 0:01:34]} 17. Rac1 {[%clk 0:01:13]}  Rc8 {[%clk 0:01:33]} 18. Bh3 {[%clk 0:01:06]}  Bc6 {[%clk 0:01:30]} 19. Rxc6 {[%clk 0:01:01]}  Rxc6 {[%clk 0:01:17]} 20. Nb4 {[%clk 0:00:58]}  Rc4 {[%clk 0:01:03]} 21. Qxd7 {[%clk 0:00:46]}  Bxb4 {[%clk 0:00:49]} 22. Be6+ {[%clk 0:00:40]}  Kh8 {[%clk 0:00:49]} 23. Qxd5 {[%clk 0:00:32]}  Qxd5 {[%clk 0:00:44]} 24. Bxd5 {[%clk 0:00:33]}  Rc2 {[%clk 0:00:43]} 25. a3 {[%clk 0:00:31]}  Bf8 {[%clk 0:00:37]} 26. b4 {[%clk 0:00:31]}  Nc4 {[%clk 0:00:37]} 27. Bxc4 {[%clk 0:00:20]}  Rxc4 {[%clk 0:00:37]} 28. d5 {[%clk 0:00:20]}  Rd8 {[%clk 0:00:34]} 29. d6 {[%clk 0:00:20]}  g5 {[%clk 0:00:30]} 30. Be3 {[%clk 0:00:17]}  Rxd6 {[%clk 0:00:30]} 31. Rxd6 {[%clk 0:00:16]}  Bxd6 {[%clk 0:00:31]} 32. Nd4 {[%clk 0:00:16]}  Be5 {[%clk 0:00:25]} 33. Nb5 {[%clk 0:00:15]}  a6 {[%clk 0:00:23]} 34. f4 {[%clk 0:00:13]}  gxf4 {[%clk 0:00:21]} 35. gxf4 {[%clk 0:00:13]}  Bxf4 {[%clk 0:00:21]} 36. Bxf4 {[%clk 0:00:13]}  Rxf4 {[%clk 0:00:19]} 37. Nd6 {[%clk 0:00:14]}  Kg7 {[%clk 0:00:19]} 38. Kg2 {[%clk 0:00:14]}  Kf8 {[%clk 0:00:12]} 39. Kg3 {[%clk 0:00:13]}  Rf1 {[%clk 0:00:12]} 40. Ne4 {[%clk 0:00:12]}  Kf7 {[%clk 0:00:12]} 41. a4 {[%clk 0:00:11]}  Rb1 {[%clk 0:00:11]} 42. b5 {[%clk 0:00:11]}  axb5 {[%clk 0:00:11]} 43. axb5 {[%clk 0:00:12]}  Ke6 {[%clk 0:00:12]} 44. Nc3 {[%clk 0:00:11]}  Rb3 {[%clk 0:00:12]} 45. Kf4 {[%clk 0:00:11]}  Rxc3 {[%clk 0:00:13]} 46. h4 {[%clk 0:00:11]}  Rb3 {[%clk 0:00:14]} 47. Kg4 {[%clk 0:00:12]}  Rxb5 {[%clk 0:00:15]} 48. h5 {[%clk 0:00:12]}  Rg5+ {[%clk 0:00:14]} 49. Kh4 {[%clk 0:00:11]}  b5 {[%clk 0:00:15]} 50. h6 {[%clk 0:00:12]}  b4 {[%clk 0:00:16]} 51. Kh3 {[%clk 0:00:12]}  b3 {[%clk 0:00:17]} 52. Kh2 {[%clk 0:00:13]}  b2 {[%clk 0:00:18]} 53. Kh3 {[%clk 0:00:14]}  b1=Q {[%clk 0:00:19]} 54. Kh4 {[%clk 0:00:15]}  Qg6 {[%clk 0:00:20]} 0-1


[Site "https://www.chess.com"]

[Event "Titled Tuesday Blitz December 20 Early 2022"]
[White "Jalapeno_Tractor_Schuppen"]
[Black "Andrii_Prydun"]
[WhiteElo "2631"]
[BlackElo "2387"]
[Result "1-0"]
[Round "04"]
[TimeControl "180+2"]
[Date "2022.12.20"]
[WhiteClock "0:00:34"]
[BlackClock "0:00:01"]

1. e4 {[%clk 0:03:00]}  c6 {[%clk 0:02:58]} 2. d4 {[%clk 0:02:59]}  d5 {[%clk 0:02:59]} 3. e5 {[%clk 0:03:00]}  Bf5 {[%clk 0:02:50]} 4. Nf3 {[%clk 0:03:00]}  e6 {[%clk 0:02:50]} 5. Be2 {[%clk 0:02:59]}  Ne7 {[%clk 0:02:47]} 6. O-O {[%clk 0:02:59]}  Nd7 {[%clk 0:02:47]} 7. Nbd2 {[%clk 0:02:53]}  h6 {[%clk 0:02:45]} 8. Nb3 {[%clk 0:02:46]}  g5 {[%clk 0:02:44]} 9. Be3 {[%clk 0:02:41]}  Ng6 {[%clk 0:02:43]} 10. c4 {[%clk 0:02:39]}  Be7 {[%clk 0:02:42]} 11. Rc1 {[%clk 0:02:38]}  h5 {[%clk 0:02:42]} 12. Bd3 {[%clk 0:02:36]}  g4 {[%clk 0:02:41]} 13. Bxf5 {[%clk 0:02:33]}  exf5 {[%clk 0:02:41]} 14. Ne1 {[%clk 0:02:32]}  f4 {[%clk 0:02:40]} 15. Bd2 {[%clk 0:02:33]}  dxc4 {[%clk 0:02:39]} 16. Rxc4 {[%clk 0:02:32]}  Nb6 {[%clk 0:02:39]} 17. Rc1 {[%clk 0:02:32]}  Nd5 {[%clk 0:02:39]} 18. Nd3 {[%clk 0:02:32]}  f3 {[%clk 0:02:21]} 19. gxf3 {[%clk 0:02:17]}  Nh4 {[%clk 0:02:21]} 20. fxg4 {[%clk 0:02:12]}  hxg4 {[%clk 0:02:21]} 21. Qxg4 {[%clk 0:02:13]}  Qd7 {[%clk 0:02:12]} 22. Qxd7+ {[%clk 0:02:11]}  Kxd7 {[%clk 0:02:13]} 23. f4 {[%clk 0:01:52]}  Rag8+ {[%clk 0:01:54]} 24. Kh1 {[%clk 0:01:51]}  Nf5 {[%clk 0:01:38]} 25. Ndc5+ {[%clk 0:01:50]}  Kc7 {[%clk 0:01:36]} 26. Ne4 {[%clk 0:01:50]}  Bh4 {[%clk 0:01:10]} 27. Rg1 {[%clk 0:01:28]}  Bg3 {[%clk 0:01:09]} 28. Rg2 {[%clk 0:01:28]}  Bxf4 {[%clk 0:01:07]} 29. Rxg8 {[%clk 0:01:23]}  Rxg8 {[%clk 0:00:34]} 30. Rf1 {[%clk 0:01:18]}  Be3 {[%clk 0:00:28]} 31. h3 {[%clk 0:01:05]}  Nh6 {[%clk 0:00:07]} 32. Rf3 {[%clk 0:00:58]}  Bxd2 {[%clk 0:00:06]} 33. Nbxd2 {[%clk 0:00:59]}  Ne7 {[%clk 0:00:03]} 34. Rf6 {[%clk 0:00:54]}  Rg6 {[%clk 0:00:03]} 35. Rxg6 {[%clk 0:00:47]}  fxg6 {[%clk 0:00:02]} 36. Nf3 {[%clk 0:00:46]}  Nhf5 {[%clk 0:00:02]} 37. Neg5 {[%clk 0:00:41]}  Nd5 {[%clk 0:00:02]} 38. Ne6+ {[%clk 0:00:42]}  Kc8 {[%clk 0:00:01]} 39. Kg2 {[%clk 0:00:37]}  Nfe3+ {[%clk 0:00:01]} 40. Kg3 {[%clk 0:00:37]}  Nd1 {[%clk 0:00:01]} 41. b3 {[%clk 0:00:34]}  N1c3 {[%clk 0:00:01]} 42. a4 {[%clk 0:00:34]}  Ne2+ {[%clk 0:00:01]} 43. Kg4 {[%clk 0:00:34]} 1-0


[Site "https://www.chess.com"]

[Event "Titled Tuesday Blitz December 20 Early 2022"]
[White "JaloliddinIlkhomi"]
[Black "Marenco Fernandez, Oscar"]
[BlackFideId "6503080"]
[WhiteElo "2533"]
[BlackElo "1885"]
[Result "0-1"]
[Round "04"]
[TimeControl "180+2"]
[Date "2022.12.20"]
[WhiteClock "0:00:05"]
[BlackClock "0:00:09"]

1. d4 {[%clk 0:03:00]}  d5 {[%clk 0:03:00]} 2. Bf4 {[%clk 0:03:00]}  Nf6 {[%clk 0:02:59]} 3. e3 {[%clk 0:02:59]}  c5 {[%clk 0:02:59]} 4. c3 {[%clk 0:02:59]}  Nc6 {[%clk 0:02:59]} 5. Nf3 {[%clk 0:02:58]}  Qb6 {[%clk 0:02:59]} 6. Qc2 {[%clk 0:02:58]}  g6 {[%clk 0:02:51]} 7. Nbd2 {[%clk 0:02:53]}  Bf5 {[%clk 0:02:50]} 8. Qb3 {[%clk 0:02:52]}  c4 {[%clk 0:02:50]} 9. Qxb6 {[%clk 0:02:53]}  axb6 {[%clk 0:02:51]} 10. a3 {[%clk 0:02:53]}  b5 {[%clk 0:02:51]} 11. Rc1 {[%clk 0:02:52]}  Bg7 {[%clk 0:02:48]} 12. Be2 {[%clk 0:02:52]}  h6 {[%clk 0:02:47]} 13. Bd1 {[%clk 0:02:52]}  g5 {[%clk 0:02:47]} 14. Bg3 {[%clk 0:02:52]}  Nh5 {[%clk 0:02:41]} 15. Bc2 {[%clk 0:02:51]}  Bxc2 {[%clk 0:02:38]} 16. Rxc2 {[%clk 0:02:52]}  Nxg3 {[%clk 0:02:36]} 17. hxg3 {[%clk 0:02:53]}  f5 {[%clk 0:02:33]} 18. O-O {[%clk 0:02:22]}  g4 {[%clk 0:02:32]} 19. Nh4 {[%clk 0:02:17]}  e6 {[%clk 0:02:31]} 20. Ng6 {[%clk 0:02:17]}  Rh7 {[%clk 0:02:28]} 21. Nf4 {[%clk 0:02:15]}  Kd7 {[%clk 0:02:27]} 22. f3 {[%clk 0:02:13]}  h5 {[%clk 0:02:27]} 23. Kf2 {[%clk 0:02:11]}  Bf6 {[%clk 0:02:26]} 24. Rh1 {[%clk 0:02:05]}  Rah8 {[%clk 0:02:26]} 25. Rcc1 {[%clk 0:02:02]}  Kd6 {[%clk 0:02:24]} 26. e4 {[%clk 0:01:44]}  Nxd4 {[%clk 0:02:07]} 27. cxd4 {[%clk 0:01:26]}  Bxd4+ {[%clk 0:02:08]} 28. Ke2 {[%clk 0:01:26]}  Bxb2 {[%clk 0:02:06]} 29. Rb1 {[%clk 0:01:25]}  c3 {[%clk 0:01:56]} 30. e5+ {[%clk 0:01:25]}  Kd7 {[%clk 0:01:26]} 31. Kd3 {[%clk 0:01:15]}  Ra8 {[%clk 0:01:23]} 32. Nb3 {[%clk 0:00:59]}  Rxa3 {[%clk 0:01:17]} 33. Nc5+ {[%clk 0:00:55]}  Ke7 {[%clk 0:01:16]} 34. Ncxe6 {[%clk 0:00:43]}  b4 {[%clk 0:01:12]} 35. Nc7 {[%clk 0:00:23]}  gxf3 {[%clk 0:00:46]} 36. Ncxd5+ {[%clk 0:00:22]}  Kd8 {[%clk 0:00:43]} 37. gxf3 {[%clk 0:00:18]}  c2+ {[%clk 0:00:44]} 38. Kxc2 {[%clk 0:00:18]}  Bxe5 {[%clk 0:00:44]} 39. Rxb4 {[%clk 0:00:17]}  Rxf3 {[%clk 0:00:44]} 40. Ne6+ {[%clk 0:00:15]}  Kc8 {[%clk 0:00:38]} 41. Kb1 {[%clk 0:00:11]}  Ra3 {[%clk 0:00:23]} 42. Kc2 {[%clk 0:00:05]}  Kb8 {[%clk 0:00:17]} 43. Rd1 {[%clk 0:00:03]}  Rd7 {[%clk 0:00:16]} 44. Nb6 {[%clk 0:00:02]}  Ra2+ {[%clk 0:00:12]} 45. Kb3 {[%clk 0:00:02]}  Rb2+ {[%clk 0:00:12]} 46. Ka3 {[%clk 0:00:02]}  Rxd1 {[%clk 0:00:12]} 47. Rxb2 {[%clk 0:00:02]}  Bxb2+ {[%clk 0:00:12]} 48. Kxb2 {[%clk 0:00:03]}  Rd6 {[%clk 0:00:13]} 49. Nc4 {[%clk 0:00:01]}  Rxe6 {[%clk 0:00:13]} 50. Kc3 {[%clk 0:00:02]}  Re4 {[%clk 0:00:13]} 51. Nd6 {[%clk 0:00:02]}  Re5 {[%clk 0:00:11]} 52. Kd4 {[%clk 0:00:02]}  Ra5 {[%clk 0:00:11]} 53. Ne8 {[%clk 0:00:02]}  Kc8 {[%clk 0:00:10]} 54. Nf6 {[%clk 0:00:03]}  Ra3 {[%clk 0:00:09]} 55. Nxh5 {[%clk 0:00:03]}  Kd7 {[%clk 0:00:09]} 56. Ng7 {[%clk 0:00:03]}  Ra5 {[%clk 0:00:08]} 57. Ke3 {[%clk 0:00:03]}  Ke7 {[%clk 0:00:08]} 58. Nh5 {[%clk 0:00:03]}  Ke6 {[%clk 0:00:08]} 59. Nf4+ {[%clk 0:00:04]}  Ke5 {[%clk 0:00:09]} 60. Ng6+ {[%clk 0:00:04]}  Kf6 {[%clk 0:00:09]} 61. Nf4 {[%clk 0:00:05]}  Kg5 {[%clk 0:00:09]} 62. Kf3 {[%clk 0:00:05]}  Ra3+ {[%clk 0:00:09]} 63. Kg2 {[%clk 0:00:06]}  Kg4 {[%clk 0:00:09]} 64. Nd5 {[%clk 0:00:05]}  Rxg3+ {[%clk 0:00:09]} 65. Kf2 {[%clk 0:00:05]}  Rd3 {[%clk 0:00:09]} 66. Nf6+ {[%clk 0:00:04]}  Kf4 {[%clk 0:00:09]} 67. Nh5+ {[%clk 0:00:05]}  Ke4 {[%clk 0:00:08]} 68. Nf6+ {[%clk 0:00:05]}  Kf4 {[%clk 0:00:09]} 69. Nh5+ {[%clk 0:00:05]}  Ke5 {[%clk 0:00:09]} 70. Ng7 {[%clk 0:00:05]}  b5 {[%clk 0:00:09]} 71. Ke2 {[%clk 0:00:05]}  Rh3 {[%clk 0:00:08]} 72. Ne8 {[%clk 0:00:05]}  Rh7 {[%clk 0:00:09]} 0-1


[Site "https://www.chess.com"]

[Event "Titled Tuesday Blitz December 20 Early 2022"]
[White "LileKoridze"]
[Black "TokChess"]
[WhiteElo "2345"]
[BlackElo "2504"]
[Result "0-1"]
[Round "04"]
[TimeControl "180+2"]
[Date "2022.12.20"]
[WhiteClock "0:00:03"]
[BlackClock "0:00:15"]

1. d4 {[%clk 0:03:00]}  e6 {[%clk 0:02:58]} 2. c4 {[%clk 0:03:01]}  c5 {[%clk 0:02:58]} 3. d5 {[%clk 0:03:00]}  exd5 {[%clk 0:02:59]} 4. cxd5 {[%clk 0:03:01]}  d6 {[%clk 0:03:00]} 5. Nf3 {[%clk 0:03:01]}  Nf6 {[%clk 0:03:00]} 6. g3 {[%clk 0:03:01]}  g6 {[%clk 0:03:01]} 7. Bg2 {[%clk 0:03:02]}  Bg7 {[%clk 0:03:02]} 8. O-O {[%clk 0:03:02]}  O-O {[%clk 0:03:03]} 9. Bg5 {[%clk 0:03:00]}  Re8 {[%clk 0:03:04]} 10. Nfd2 {[%clk 0:03:00]}  h6 {[%clk 0:03:03]} 11. Bxf6 {[%clk 0:02:54]}  Qxf6 {[%clk 0:03:01]} 12. Nc3 {[%clk 0:02:54]}  Na6 {[%clk 0:02:54]} 13. Nc4 {[%clk 0:01:46]}  Qe7 {[%clk 0:02:43]} 14. e4 {[%clk 0:01:44]}  Nc7 {[%clk 0:02:39]} 15. a4 {[%clk 0:01:44]}  b6 {[%clk 0:02:37]} 16. Qd3 {[%clk 0:01:42]}  Ba6 {[%clk 0:02:37]} 17. Rfe1 {[%clk 0:01:39]}  Rab8 {[%clk 0:02:25]} 18. b3 {[%clk 0:01:19]}  h5 {[%clk 0:02:22]} 19. f4 {[%clk 0:01:17]}  Bd4+ {[%clk 0:02:21]} 20. Kh1 {[%clk 0:01:17]}  Red8 {[%clk 0:02:13]} 21. e5 {[%clk 0:00:53]}  Bxc4 {[%clk 0:02:02]} 22. Qxc4 {[%clk 0:00:49]}  dxe5 {[%clk 0:02:00]} 23. Rad1 {[%clk 0:00:39]}  Ne8 {[%clk 0:01:36]} 24. fxe5 {[%clk 0:00:23]}  Bxe5 {[%clk 0:01:37]} 25. Ne4 {[%clk 0:00:20]}  Nd6 {[%clk 0:01:33]} 26. Qe2 {[%clk 0:00:19]}  Re8 {[%clk 0:01:30]} 27. Nd2 {[%clk 0:00:15]}  h4 {[%clk 0:01:20]} 28. g4 {[%clk 0:00:14]}  Kg7 {[%clk 0:01:16]} 29. h3 {[%clk 0:00:14]}  Qf6 {[%clk 0:01:04]} 30. Rf1 {[%clk 0:00:12]}  Qg5 {[%clk 0:00:52]} 31. Nf3 {[%clk 0:00:09]}  Qf4 {[%clk 0:00:52]} 32. Nxe5 {[%clk 0:00:08]}  Qxe5 {[%clk 0:00:53]} 33. Qf3 {[%clk 0:00:08]}  f6 {[%clk 0:00:47]} 34. Qf2 {[%clk 0:00:07]}  g5 {[%clk 0:00:46]} 35. Rfe1 {[%clk 0:00:07]}  Qg3 {[%clk 0:00:44]} 36. Qf1 {[%clk 0:00:07]}  Rxe1 {[%clk 0:00:32]} 37. Rxe1 {[%clk 0:00:07]}  Re8 {[%clk 0:00:33]} 38. Rxe8 {[%clk 0:00:06]}  Nxe8 {[%clk 0:00:34]} 39. Qb5 {[%clk 0:00:05]}  Qe1+ {[%clk 0:00:31]} 40. Kh2 {[%clk 0:00:05]}  Qe5+ {[%clk 0:00:31]} 41. Kh1 {[%clk 0:00:06]}  Qe7 {[%clk 0:00:25]} 42. Qc6 {[%clk 0:00:06]}  Nd6 {[%clk 0:00:24]} 43. Qa8 {[%clk 0:00:05]}  Nf7 {[%clk 0:00:22]} 44. Qc6 {[%clk 0:00:05]}  Ne5 {[%clk 0:00:21]} 45. Qb5 {[%clk 0:00:05]}  Ng6 {[%clk 0:00:20]} 46. Qd3 {[%clk 0:00:05]}  Nf4 {[%clk 0:00:19]} 47. Qd1 {[%clk 0:00:05]}  Qd6 {[%clk 0:00:16]} 48. Be4 {[%clk 0:00:05]}  a6 {[%clk 0:00:16]} 49. Qf3 {[%clk 0:00:03]}  b5 {[%clk 0:00:16]} 50. axb5 {[%clk 0:00:03]}  axb5 {[%clk 0:00:17]} 51. Qe3 {[%clk 0:00:02]}  Qe5 {[%clk 0:00:16]} 52. Qf3 {[%clk 0:00:02]}  Nxh3 {[%clk 0:00:15]} 53. Kg2 {[%clk 0:00:02]}  Nf4+ {[%clk 0:00:15]} 54. Kf1 {[%clk 0:00:02]}  Qa1+ {[%clk 0:00:15]} 55. Kf2 {[%clk 0:00:02]}  Qb2+ {[%clk 0:00:15]} 56. Kf1 {[%clk 0:00:03]}  Qc1+ {[%clk 0:00:15]} 57. Kf2 {[%clk 0:00:03]}  Qd2+ {[%clk 0:00:15]} 58. Kf1 {[%clk 0:00:04]}  c4 {[%clk 0:00:15]} 59. bxc4 {[%clk 0:00:03]}  bxc4 {[%clk 0:00:16]} 60. Bb1 {[%clk 0:00:03]}  Qc1+ {[%clk 0:00:15]} 0-1


[Site "https://www.chess.com"]

[Event "Titled Tuesday Blitz December 20 Early 2022"]
[White "Lim, Seng Hoo"]
[Black "JohnWhite1952"]
[WhiteFideId "5800021"]
[WhiteElo "2440"]
[BlackElo "1978"]
[Result "1-0"]
[Round "04"]
[TimeControl "180+2"]
[Date "2022.12.20"]
[WhiteClock "0:01:56"]
[BlackClock "0:01:35"]

1. e4 {[%clk 0:02:18]}  e6 {[%clk 0:02:59]} 2. d4 {[%clk 0:02:17]}  d5 {[%clk 0:02:58]} 3. Nd2 {[%clk 0:02:17]}  c5 {[%clk 0:02:56]} 4. Ngf3 {[%clk 0:02:18]}  Nc6 {[%clk 0:02:52]} 5. exd5 {[%clk 0:02:18]}  exd5 {[%clk 0:02:50]} 6. c3 {[%clk 0:02:15]}  Nf6 {[%clk 0:02:46]} 7. dxc5 {[%clk 0:02:15]}  Bxc5 {[%clk 0:02:45]} 8. Bd3 {[%clk 0:02:16]}  Be6 {[%clk 0:02:42]} 9. O-O {[%clk 0:02:16]}  O-O {[%clk 0:02:42]} 10. Nb3 {[%clk 0:02:14]}  Be7 {[%clk 0:02:36]} 11. h3 {[%clk 0:02:12]}  h6 {[%clk 0:02:35]} 12. Re1 {[%clk 0:02:11]}  a6 {[%clk 0:02:29]} 13. Bf4 {[%clk 0:02:09]}  Rc8 {[%clk 0:02:27]} 14. Nfd4 {[%clk 0:02:08]}  Nxd4 {[%clk 0:02:15]} 15. Nxd4 {[%clk 0:02:09]}  Bd7 {[%clk 0:02:10]} 16. Qf3 {[%clk 0:02:07]}  Bc6 {[%clk 0:02:07]} 17. Rad1 {[%clk 0:02:02]}  Ne4 {[%clk 0:02:01]} 18. Nxc6 {[%clk 0:01:57]}  Rxc6 {[%clk 0:01:47]} 19. Bxe4 {[%clk 0:01:56]}  dxe4 {[%clk 0:01:47]} 20. Qxe4 {[%clk 0:01:57]}  Re6 {[%clk 0:01:40]} 21. Rxd8 {[%clk 0:01:57]}  Rxe4 {[%clk 0:01:37]} 22. Rxf8+ {[%clk 0:01:57]}  Kxf8 {[%clk 0:01:36]} 23. Rxe4 {[%clk 0:01:58]}  Bc5 {[%clk 0:01:35]} 24. b4 {[%clk 0:01:56]} 1-0


[Site "https://www.chess.com"]

[Event "Titled Tuesday Blitz December 20 Early 2022"]
[White "MalyDominator"]
[Black "RamyresCoelho"]
[WhiteElo "2428"]
[BlackElo "2223"]
[Result "1-0"]
[Round "04"]
[TimeControl "180+2"]
[Date "2022.12.20"]
[WhiteClock "0:01:52"]
[BlackClock "0:00:02"]

1. Nf3 {[%clk 0:03:00]}  Nf6 {[%clk 0:02:57]} 2. g3 {[%clk 0:03:01]}  g6 {[%clk 0:02:55]} 3. Bg2 {[%clk 0:03:02]}  Bg7 {[%clk 0:02:55]} 4. O-O {[%clk 0:03:03]}  O-O {[%clk 0:02:54]} 5. b3 {[%clk 0:02:58]}  d6 {[%clk 0:02:55]} 6. Bb2 {[%clk 0:02:58]}  c6 {[%clk 0:02:55]} 7. d3 {[%clk 0:02:59]}  e5 {[%clk 0:02:55]} 8. Nbd2 {[%clk 0:03:00]}  h6 {[%clk 0:02:53]} 9. a3 {[%clk 0:03:00]}  Be6 {[%clk 0:02:54]} 10. Ra2 {[%clk 0:03:01]}  Na6 {[%clk 0:02:53]} 11. Qa1 {[%clk 0:03:01]}  Nc7 {[%clk 0:02:53]} 12. d4 {[%clk 0:03:02]}  e4 {[%clk 0:02:52]} 13. Ne1 {[%clk 0:03:01]}  d5 {[%clk 0:02:53]} 14. c4 {[%clk 0:03:01]}  Qd7 {[%clk 0:02:52]} 15. Nc2 {[%clk 0:03:02]}  Bh3 {[%clk 0:02:52]} 16. Ne3 {[%clk 0:03:01]}  Bxg2 {[%clk 0:02:51]} 17. Kxg2 {[%clk 0:03:02]}  h5 {[%clk 0:02:49]} 18. h4 {[%clk 0:03:02]}  Ng4 {[%clk 0:02:46]} 19. Nxg4 {[%clk 0:03:01]}  Qxg4 {[%clk 0:02:46]} 20. Re1 {[%clk 0:03:02]}  e3 {[%clk 0:02:44]} 21. f3 {[%clk 0:02:59]}  Qf5 {[%clk 0:02:34]} 22. Nf1 {[%clk 0:02:59]}  Rae8 {[%clk 0:02:30]} 23. Qc1 {[%clk 0:02:59]}  Bh6 {[%clk 0:02:29]} 24. Ra1 {[%clk 0:02:57]}  g5 {[%clk 0:02:27]} 25. hxg5 {[%clk 0:02:57]}  Qxg5 {[%clk 0:02:27]} 26. Qc2 {[%clk 0:02:56]}  h4 {[%clk 0:02:24]} 27. Rad1 {[%clk 0:02:52]}  Ne6 {[%clk 0:02:12]} 28. Bc1 {[%clk 0:02:51]}  Nf4+ {[%clk 0:02:00]} 29. Kg1 {[%clk 0:02:48]}  Nh3+ {[%clk 0:01:44]} 30. Kg2 {[%clk 0:02:48]}  Nf2 {[%clk 0:01:24]} 31. Bxe3 {[%clk 0:02:32]}  Rxe3 {[%clk 0:01:23]} 32. Kxf2 {[%clk 0:02:29]}  hxg3+ {[%clk 0:01:17]} 33. Nxg3 {[%clk 0:02:28]}  Rfe8 {[%clk 0:01:06]} 34. Rg1 {[%clk 0:02:27]}  Qh4 {[%clk 0:01:03]} 35. Kf1 {[%clk 0:02:19]}  Qh3+ {[%clk 0:01:01]} 36. Rg2 {[%clk 0:02:19]}  Bf4 {[%clk 0:00:54]} 37. Qf5 {[%clk 0:02:15]}  Qxf5 {[%clk 0:00:04]} 38. Nxf5+ {[%clk 0:02:14]}  Kf8 {[%clk 0:00:05]} 39. Nxe3 {[%clk 0:02:14]}  Rxe3 {[%clk 0:00:06]} 40. cxd5 {[%clk 0:02:13]}  cxd5 {[%clk 0:00:07]} 41. Rg4 {[%clk 0:02:13]}  Bd6 {[%clk 0:00:05]} 42. Kf2 {[%clk 0:02:14]}  Rxb3 {[%clk 0:00:04]} 43. Rh1 {[%clk 0:02:12]}  Rxa3 {[%clk 0:00:02]} 44. Rh8+ {[%clk 0:02:12]}  Ke7 {[%clk 0:00:03]} 45. Rgg8 {[%clk 0:02:11]}  Ra4 {[%clk 0:00:01]} 46. Re8+ {[%clk 0:02:12]}  Kf6 {[%clk 0:00:02]} 47. e3 {[%clk 0:02:10]}  Ra2+ {[%clk 0:00:02]} 48. Kg1 {[%clk 0:02:09]}  b5 {[%clk 0:00:02]} 49. f4 {[%clk 0:02:07]}  Kg7 {[%clk 0:00:01]} 50. Rh5 {[%clk 0:02:05]}  Bf8 {[%clk 0:00:01]} 51. Rg5+ {[%clk 0:02:04]}  Kf6 {[%clk 0:00:01]} 52. Rxf8 {[%clk 0:02:05]}  a5 {[%clk 0:00:02]} 53. Rd8 {[%clk 0:02:02]}  b4 {[%clk 0:00:03]} 54. Rd6+ {[%clk 0:02:02]}  Ke7 {[%clk 0:00:03]} 55. Rdxd5 {[%clk 0:02:02]}  b3 {[%clk 0:00:03]} 56. Rxa5 {[%clk 0:01:52]}  Rxa5 {[%clk 0:00:03]} 57. Rxa5 {[%clk 0:01:51]}  b2 {[%clk 0:00:02]} 58. Rb5 {[%clk 0:01:52]}  b1=Q+ {[%clk 0:00:02]} 59. Rxb1 {[%clk 0:01:52]} 1-0


[Site "https://www.chess.com"]